[Event "Titled Tuesday Blitz February 15 Early 2022"]
[White "Moksh Amit Doshi"]
[Black "Mosutha, Thuso"]
[WhiteFideId "25064967"]
[BlackFideId "11302550"]
[WhiteElo "2245"]
[BlackElo "2028"]
[Result "1-0"]
[Round "05"]
[TimeControl "180+1"]
[Date "2022.02.15"]
[WhiteClock "0:00:59"]
[BlackClock "0:00:05"]

1. e4 {[%clk 0:03:00]}  e6 {[%clk 0:02:59]} 2. d4 {[%clk 0:02:57]}  d5 {[%clk 0:02:59]} 3. Nc3 {[%clk 0:02:53]}  Nf6 {[%clk 0:03:00]} 4. e5 {[%clk 0:02:53]}  Nfd7 {[%clk 0:03:00]} 5. f4 {[%clk 0:02:54]}  c5 {[%clk 0:03:00]} 6. Nf3 {[%clk 0:02:54]}  Nc6 {[%clk 0:03:00]} 7. Be3 {[%clk 0:02:55]}  cxd4 {[%clk 0:03:00]} 8. Nxd4 {[%clk 0:02:54]}  Bc5 {[%clk 0:02:58]} 9. Qd2 {[%clk 0:02:54]}  O-O {[%clk 0:02:57]} 10. O-O-O {[%clk 0:02:54]}  Nxd4 {[%clk 0:02:57]} 11. Bxd4 {[%clk 0:02:54]}  Bxd4 {[%clk 0:02:58]} 12. Qxd4 {[%clk 0:02:54]}  f6 {[%clk 0:02:59]} 13. Nxd5 {[%clk 0:02:14]}  fxe5 {[%clk 0:02:53]} 14. fxe5 {[%clk 0:02:14]}  Qg5+ {[%clk 0:02:32]} 15. Ne3 {[%clk 0:01:57]}  Qxe5 {[%clk 0:02:19]} 16. Bc4 {[%clk 0:01:56]}  Kh8 {[%clk 0:01:40]} 17. Rhf1 {[%clk 0:01:21]}  Rxf1 {[%clk 0:00:55]} 18. Nxf1 {[%clk 0:01:22]}  Qxd4 {[%clk 0:00:47]} 19. Rxd4 {[%clk 0:01:23]}  e5 {[%clk 0:00:23]} 20. Rd6 {[%clk 0:01:21]}  g6 {[%clk 0:00:23]} 21. Be6 {[%clk 0:01:20]}  Nb6 {[%clk 0:00:23]} 22. Rd8+ {[%clk 0:01:18]}  Kg7 {[%clk 0:00:23]} 23. Re8 {[%clk 0:01:13]}  Bxe6 {[%clk 0:00:16]} 24. Rxe6 {[%clk 0:01:14]}  Rf8 {[%clk 0:00:14]} 25. Ne3 {[%clk 0:01:11]}  Nd7 {[%clk 0:00:10]} 26. Kd2 {[%clk 0:01:05]}  Kf7 {[%clk 0:00:11]} 27. Rd6 {[%clk 0:01:03]}  Rd8 {[%clk 0:00:11]} 28. Nd5 {[%clk 0:01:01]}  b6 {[%clk 0:00:04]} 29. c4 {[%clk 0:00:57]}  Ke8 {[%clk 0:00:04]} 30. Kc3 {[%clk 0:00:55]}  Nc5 {[%clk 0:00:02]} 31. Nf6+ {[%clk 0:00:55]}  Ke7 {[%clk 0:00:02]} 32. Rxd8 {[%clk 0:00:56]}  Kxd8 {[%clk 0:00:03]} 33. Nxh7 {[%clk 0:00:57]}  Ne4+ {[%clk 0:00:02]} 34. Kd3 {[%clk 0:00:57]}  Nd6 {[%clk 0:00:02]} 35. Nf8 {[%clk 0:00:56]}  Ke7 {[%clk 0:00:03]} 36. Nxg6+ {[%clk 0:00:56]}  Kf6 {[%clk 0:00:04]} 37. Nh4 {[%clk 0:00:57]}  e4+ {[%clk 0:00:03]} 38. Kd4 {[%clk 0:00:56]}  Kg5 {[%clk 0:00:04]} 39. g3 {[%clk 0:00:55]}  Nf7 {[%clk 0:00:01]} 40. Kxe4 {[%clk 0:00:55]}  Nd6+ {[%clk 0:00:02]} 41. Kd5 {[%clk 0:00:55]}  Nb7 {[%clk 0:00:02]} 42. b4 {[%clk 0:00:55]}  a5 {[%clk 0:00:01]} 43. a3 {[%clk 0:00:55]}  axb4 {[%clk 0:00:02]} 44. axb4 {[%clk 0:00:56]}  Kg4 {[%clk 0:00:02]} 45. c5 {[%clk 0:00:57]}  bxc5 {[%clk 0:00:03]} 46. bxc5 {[%clk 0:00:58]}  Na5 {[%clk 0:00:03]} 47. c6 {[%clk 0:00:58]}  Nxc6 {[%clk 0:00:03]} 48. Kxc6 {[%clk 0:00:59]}  Kh3 {[%clk 0:00:04]} 49. Kd5 {[%clk 0:00:58]}  Kxh2 {[%clk 0:00:05]} 50. g4 {[%clk 0:00:59]} 1-0


[Site "https://www.chess.com"]

[Event "Titled Tuesday Blitz February 15 Early 2022"]
[White "Moskvin, Anatoly"]
[Black "Visakh N R"]
[WhiteFideId "24199990"]
[BlackFideId "25012223"]
[WhiteElo "2422"]
[BlackElo "2776"]
[Result "0-1"]
[Round "05"]
[TimeControl "180+1"]
[Date "2022.02.15"]
[WhiteClock "0:00:06"]
[BlackClock "0:00:14"]

1. e4 {[%clk 0:03:00]}  c5 {[%clk 0:02:55]} 2. Nf3 {[%clk 0:03:01]}  d6 {[%clk 0:02:54]} 3. d4 {[%clk 0:03:01]}  cxd4 {[%clk 0:02:55]} 4. Nxd4 {[%clk 0:03:01]}  Nf6 {[%clk 0:02:54]} 5. f3 {[%clk 0:03:01]}  e5 {[%clk 0:02:50]} 6. Bb5+ {[%clk 0:03:01]}  Nbd7 {[%clk 0:02:45]} 7. Ne2 {[%clk 0:03:01]}  a6 {[%clk 0:02:43]} 8. Bxd7+ {[%clk 0:03:00]}  Bxd7 {[%clk 0:02:43]} 9. c4 {[%clk 0:03:01]}  b5 {[%clk 0:02:43]} 10. cxb5 {[%clk 0:03:00]}  axb5 {[%clk 0:02:43]} 11. O-O {[%clk 0:03:00]}  Qb6+ {[%clk 0:02:39]} 12. Kh1 {[%clk 0:03:00]}  b4 {[%clk 0:02:40]} 13. Nd2 {[%clk 0:02:59]}  Bb5 {[%clk 0:02:37]} 14. a4 {[%clk 0:02:44]}  Be7 {[%clk 0:02:33]} 15. b3 {[%clk 0:02:34]}  O-O {[%clk 0:02:27]} 16. Re1 {[%clk 0:02:29]}  Rfc8 {[%clk 0:02:22]} 17. Ng3 {[%clk 0:02:24]}  Bd3 {[%clk 0:02:07]} 18. Nf5 {[%clk 0:02:17]}  Bf8 {[%clk 0:02:06]} 19. Ne3 {[%clk 0:02:18]}  Qd4 {[%clk 0:01:59]} 20. Ra2 {[%clk 0:02:12]}  d5 {[%clk 0:01:49]} 21. Bb2 {[%clk 0:02:02]}  Rc3 {[%clk 0:01:49]} 22. exd5 {[%clk 0:01:42]}  Rac8 {[%clk 0:01:44]} 23. Bxc3 {[%clk 0:01:32]}  bxc3 {[%clk 0:01:32]} 24. Ndc4 {[%clk 0:01:29]}  Nxd5 {[%clk 0:01:27]} 25. Nxd5 {[%clk 0:01:14]}  Qxd5 {[%clk 0:01:28]} 26. Rxe5 {[%clk 0:00:58]}  Qd4 {[%clk 0:01:16]} 27. Re3 {[%clk 0:00:45]}  Rd8 {[%clk 0:01:04]} 28. Rxd3 {[%clk 0:00:13]}  Qxd3 {[%clk 0:01:04]} 29. Qxd3 {[%clk 0:00:14]}  Rxd3 {[%clk 0:01:04]} 30. g3 {[%clk 0:00:15]}  g5 {[%clk 0:00:41]} 31. Rc2 {[%clk 0:00:15]}  Bc5 {[%clk 0:00:37]} 32. Kg2 {[%clk 0:00:15]}  h5 {[%clk 0:00:36]} 33. h4 {[%clk 0:00:07]}  g4 {[%clk 0:00:35]} 34. fxg4 {[%clk 0:00:05]}  hxg4 {[%clk 0:00:36]} 35. a5 {[%clk 0:00:05]}  Ba7 {[%clk 0:00:34]} 36. Kf1 {[%clk 0:00:02]}  Rxg3 {[%clk 0:00:33]} 37. b4 {[%clk 0:00:03]}  Rg1+ {[%clk 0:00:16]} 38. Ke2 {[%clk 0:00:03]}  Rg2+ {[%clk 0:00:17]} 39. Kd3 {[%clk 0:00:04]}  Rxc2 {[%clk 0:00:18]} 40. Kxc2 {[%clk 0:00:04]}  g3 {[%clk 0:00:19]} 41. b5 {[%clk 0:00:05]}  g2 {[%clk 0:00:19]} 42. b6 {[%clk 0:00:03]}  g1=Q {[%clk 0:00:19]} 43. bxa7 {[%clk 0:00:02]}  Qxa7 {[%clk 0:00:20]} 44. Kxc3 {[%clk 0:00:03]}  Kh7 {[%clk 0:00:20]} 45. Kb4 {[%clk 0:00:04]}  Kg6 {[%clk 0:00:18]} 46. Kb5 {[%clk 0:00:03]}  Qd7+ {[%clk 0:00:17]} 47. Kc5 {[%clk 0:00:02]}  Qc7+ {[%clk 0:00:17]} 48. Kb5 {[%clk 0:00:02]}  Qd7+ {[%clk 0:00:17]} 49. Kc5 {[%clk 0:00:02]}  Kh5 {[%clk 0:00:17]} 50. Ne5 {[%clk 0:00:03]}  Qc7+ {[%clk 0:00:17]} 51. Nc6 {[%clk 0:00:04]}  f5 {[%clk 0:00:16]} 52. a6 {[%clk 0:00:04]}  f4 {[%clk 0:00:16]} 53. a7 {[%clk 0:00:05]}  Qb7 {[%clk 0:00:16]} 54. Kd6 {[%clk 0:00:05]}  f3 {[%clk 0:00:15]} 55. Nd8 {[%clk 0:00:06]}  Qa6+ {[%clk 0:00:14]} 56. Ke7 {[%clk 0:00:06]}  Qxa7+ {[%clk 0:00:14]} 0-1


[Site "https://www.chess.com"]

[Event "Titled Tuesday Blitz February 15 Early 2022"]
[White "Namitbir Singh Walia"]
[Black "Sargsyan, Anna M."]
[WhiteFideId "35071068"]
[BlackFideId "13308130"]
[WhiteElo "1479"]
[BlackElo "2271"]
[Result "0-1"]
[Round "05"]
[TimeControl "180+1"]
[Date "2022.02.15"]
[WhiteClock "0:00:05"]
[BlackClock "0:00:06"]

1. e4 {[%clk 0:03:00]}  c6 {[%clk 0:02:52]} 2. Nc3 {[%clk 0:02:58]}  d5 {[%clk 0:02:53]} 3. Nf3 {[%clk 0:02:58]}  Bg4 {[%clk 0:02:51]} 4. h3 {[%clk 0:02:54]}  Bxf3 {[%clk 0:02:51]} 5. Qxf3 {[%clk 0:02:49]}  Nf6 {[%clk 0:02:51]} 6. d4 {[%clk 0:02:35]}  dxe4 {[%clk 0:02:51]} 7. Qe3 {[%clk 0:02:33]}  Nbd7 {[%clk 0:02:48]} 8. Be2 {[%clk 0:02:30]}  Nd5 {[%clk 0:02:41]} 9. Qxe4 {[%clk 0:02:24]}  N7f6 {[%clk 0:02:40]} 10. Qe5 {[%clk 0:02:19]}  e6 {[%clk 0:02:37]} 11. Nxd5 {[%clk 0:02:13]}  cxd5 {[%clk 0:02:30]} 12. Bb5+ {[%clk 0:02:07]}  Nd7 {[%clk 0:02:30]} 13. O-O {[%clk 0:02:02]}  a6 {[%clk 0:02:30]} 14. Bxd7+ {[%clk 0:01:59]}  Qxd7 {[%clk 0:02:31]} 15. Bf4 {[%clk 0:01:55]}  h6 {[%clk 0:02:20]} 16. Rfe1 {[%clk 0:01:49]}  Rc8 {[%clk 0:02:18]} 17. c3 {[%clk 0:01:42]}  Qb5 {[%clk 0:02:14]} 18. Re2 {[%clk 0:01:29]}  Kd7 {[%clk 0:02:09]} 19. Rae1 {[%clk 0:01:25]}  Qa5 {[%clk 0:01:56]} 20. a3 {[%clk 0:01:18]}  Qb6 {[%clk 0:01:55]} 21. Qh5 {[%clk 0:01:16]}  g6 {[%clk 0:01:54]} 22. Qf3 {[%clk 0:01:12]}  Rh7 {[%clk 0:01:52]} 23. h4 {[%clk 0:01:09]}  Be7 {[%clk 0:01:47]} 24. h5 {[%clk 0:01:07]}  g5 {[%clk 0:01:43]} 25. Be5 {[%clk 0:01:00]}  f5 {[%clk 0:01:43]} 26. Bh2 {[%clk 0:00:52]}  Rc6 {[%clk 0:01:43]} 27. Qd3 {[%clk 0:00:48]}  Rf7 {[%clk 0:01:41]} 28. Be5 {[%clk 0:00:48]}  g4 {[%clk 0:01:33]} 29. Qd2 {[%clk 0:00:44]}  Bg5 {[%clk 0:01:32]} 30. Bf4 {[%clk 0:00:43]}  Rg7 {[%clk 0:01:31]} 31. Qe3 {[%clk 0:00:42]}  Bxf4 {[%clk 0:01:24]} 32. Qxf4 {[%clk 0:00:42]}  Rg5 {[%clk 0:01:24]} 33. Qe5 {[%clk 0:00:42]}  Qc7 {[%clk 0:01:25]} 34. Qxc7+ {[%clk 0:00:33]}  Kxc7 {[%clk 0:01:22]} 35. Rxe6 {[%clk 0:00:33]}  Rxh5 {[%clk 0:01:15]} 36. Re7+ {[%clk 0:00:30]}  Kb6 {[%clk 0:01:15]} 37. Rf7 {[%clk 0:00:26]}  Ka5 {[%clk 0:00:55]} 38. Rxb7 {[%clk 0:00:24]}  f4 {[%clk 0:00:53]} 39. Rf7 {[%clk 0:00:20]}  f3 {[%clk 0:00:49]} 40. gxf3 {[%clk 0:00:19]}  gxf3 {[%clk 0:00:50]} 41. Rxf3 {[%clk 0:00:18]}  Ka4 {[%clk 0:00:50]} 42. Rg3 {[%clk 0:00:17]}  Kb3 {[%clk 0:00:50]} 43. Re2 {[%clk 0:00:17]}  a5 {[%clk 0:00:50]} 44. Kg2 {[%clk 0:00:16]}  a4 {[%clk 0:00:50]} 45. Rh3 {[%clk 0:00:17]}  Rg6+ {[%clk 0:00:49]} 46. Rg3 {[%clk 0:00:16]}  Rb6 {[%clk 0:00:49]} 47. f4 {[%clk 0:00:15]}  Ka2 {[%clk 0:00:44]} 48. Re5 {[%clk 0:00:15]}  Rxb2+ {[%clk 0:00:41]} 49. Kf3 {[%clk 0:00:15]}  Rhh2 {[%clk 0:00:42]} 50. f5 {[%clk 0:00:13]}  Kxa3 {[%clk 0:00:29]} 51. Rxd5 {[%clk 0:00:12]}  Ka2 {[%clk 0:00:28]} 52. Kf4 {[%clk 0:00:10]}  a3 {[%clk 0:00:27]} 53. Ke5 {[%clk 0:00:09]}  Rbe2+ {[%clk 0:00:25]} 54. Kd6 {[%clk 0:00:08]}  Rhf2 {[%clk 0:00:22]} 55. c4 {[%clk 0:00:06]}  h5 {[%clk 0:00:13]} 56. Ra5 {[%clk 0:00:06]}  Kb2 {[%clk 0:00:13]} 57. Rgxa3 {[%clk 0:00:04]}  h4 {[%clk 0:00:11]} 58. Rh3 {[%clk 0:00:03]}  Re4 {[%clk 0:00:10]} 59. d5 {[%clk 0:00:01]}  Rxf5 {[%clk 0:00:08]} 60. Rb5+ {[%clk 0:00:02]}  Kc2 {[%clk 0:00:08]} 61. c5 {[%clk 0:00:02]}  Rd4 {[%clk 0:00:07]} 62. Kc7 {[%clk 0:00:03]}  Rfxd5 {[%clk 0:00:06]} 63. c6 {[%clk 0:00:04]}  Rxb5 {[%clk 0:00:06]} 64. Rh2+ {[%clk 0:00:05]}  Kc3 {[%clk 0:00:06]} 0-1


[Site "https://www.chess.com"]

[Event "Titled Tuesday Blitz February 15 Early 2022"]
[White "Nazari, Arad"]
[Black "Guseva, Marina"]
[WhiteFideId "12577324"]
[BlackFideId "4149351"]
[WhiteElo "2120"]
[BlackElo "2232"]
[Result "1-0"]
[Round "05"]
[TimeControl "180+1"]
[Date "2022.02.15"]
[WhiteClock "0:00:36"]
[BlackClock "0:00:01"]

1. e4 {[%clk 0:03:00]}  c5 {[%clk 0:02:58]} 2. Nf3 {[%clk 0:03:00]}  d6 {[%clk 0:02:57]} 3. Bb5+ {[%clk 0:03:01]}  Nd7 {[%clk 0:02:56]} 4. d4 {[%clk 0:03:00]}  cxd4 {[%clk 0:02:55]} 5. Qxd4 {[%clk 0:03:01]}  a6 {[%clk 0:02:51]} 6. Bxd7+ {[%clk 0:03:01]}  Bxd7 {[%clk 0:02:50]} 7. O-O {[%clk 0:03:01]}  e5 {[%clk 0:02:50]} 8. Qd3 {[%clk 0:03:02]}  h6 {[%clk 0:02:48]} 9. c4 {[%clk 0:03:02]}  b5 {[%clk 0:02:48]} 10. Nfd2 {[%clk 0:03:02]}  Nf6 {[%clk 0:02:45]} 11. Nc3 {[%clk 0:03:00]}  Qb8 {[%clk 0:02:33]} 12. b3 {[%clk 0:02:56]}  Be7 {[%clk 0:02:28]} 13. a4 {[%clk 0:02:54]}  bxc4 {[%clk 0:02:20]} 14. Nxc4 {[%clk 0:02:49]}  O-O {[%clk 0:02:15]} 15. Ba3 {[%clk 0:02:48]}  Rc8 {[%clk 0:02:08]} 16. Rab1 {[%clk 0:02:29]}  Be6 {[%clk 0:01:25]} 17. Rfc1 {[%clk 0:01:35]}  Rd8 {[%clk 0:01:22]} 18. Ne3 {[%clk 0:01:28]}  Qb7 {[%clk 0:00:51]} 19. Ncd5 {[%clk 0:01:25]}  Nxd5 {[%clk 0:00:44]} 20. Nxd5 {[%clk 0:01:26]}  Bxd5 {[%clk 0:00:25]} 21. Qxd5 {[%clk 0:01:00]}  Rab8 {[%clk 0:00:21]} 22. Rc6 {[%clk 0:00:54]}  Rd7 {[%clk 0:00:19]} 23. b4 {[%clk 0:00:52]}  Kh7 {[%clk 0:00:13]} 24. g3 {[%clk 0:00:47]}  Qa8 {[%clk 0:00:08]} 25. Rbc1 {[%clk 0:00:39]}  Bg5 {[%clk 0:00:05]} 26. R1c3 {[%clk 0:00:37]}  Rbb7 {[%clk 0:00:02]} 27. Kg2 {[%clk 0:00:37]}  Qa7 {[%clk 0:00:02]} 28. Rf3 {[%clk 0:00:37]}  Bf6 {[%clk 0:00:01]} 29. Rxd6 {[%clk 0:00:36]} 1-0


[Site "https://www.chess.com"]

[Event "Titled Tuesday Blitz February 15 Early 2022"]
[White "Nguyen, Ngoc Truong Son"]
[Black "Tregubov, Pavel V."]
[WhiteFideId "12401110"]
[BlackFideId "4115341"]
[WhiteElo "2819"]
[BlackElo "2601"]
[Result "1-0"]
[Round "05"]
[TimeControl "180+1"]
[Date "2022.02.15"]
[WhiteClock "0:00:12"]
[BlackClock "0:00:10"]

1. e4 {[%clk 0:03:00]}  c5 {[%clk 0:02:59]} 2. Nf3 {[%clk 0:03:01]}  e6 {[%clk 0:02:57]} 3. d4 {[%clk 0:02:59]}  cxd4 {[%clk 0:02:57]} 4. Nxd4 {[%clk 0:03:00]}  Nc6 {[%clk 0:02:57]} 5. Nc3 {[%clk 0:02:58]}  Nf6 {[%clk 0:02:58]} 6. Nxc6 {[%clk 0:02:52]}  bxc6 {[%clk 0:02:57]} 7. Bd3 {[%clk 0:02:53]}  d5 {[%clk 0:02:56]} 8. O-O {[%clk 0:02:51]}  Be7 {[%clk 0:02:56]} 9. Qe2 {[%clk 0:02:44]}  O-O {[%clk 0:02:56]} 10. b3 {[%clk 0:02:40]}  Bb7 {[%clk 0:02:49]} 11. Re1 {[%clk 0:02:28]}  Re8 {[%clk 0:02:48]} 12. Bb2 {[%clk 0:02:14]}  Bf8 {[%clk 0:02:34]} 13. Na4 {[%clk 0:01:56]}  Nxe4 {[%clk 0:02:22]} 14. Bxe4 {[%clk 0:01:54]}  dxe4 {[%clk 0:02:23]} 15. Qxe4 {[%clk 0:01:50]}  Qe7 {[%clk 0:02:18]} 16. Qe3 {[%clk 0:01:43]}  c5 {[%clk 0:02:16]} 17. Ba3 {[%clk 0:01:23]}  Rac8 {[%clk 0:02:14]} 18. c4 {[%clk 0:01:14]}  Qc7 {[%clk 0:01:51]} 19. Rad1 {[%clk 0:01:10]}  Bc6 {[%clk 0:01:35]} 20. Nxc5 {[%clk 0:01:01]}  Ba8 {[%clk 0:01:18]} 21. b4 {[%clk 0:00:43]}  Red8 {[%clk 0:01:12]} 22. Bb2 {[%clk 0:00:36]}  Bxc5 {[%clk 0:01:07]} 23. Qxc5 {[%clk 0:00:28]}  Qxc5 {[%clk 0:00:48]} 24. bxc5 {[%clk 0:00:29]}  Kf8 {[%clk 0:00:46]} 25. f3 {[%clk 0:00:28]}  Bc6 {[%clk 0:00:35]} 26. Be5 {[%clk 0:00:26]}  Rxd1 {[%clk 0:00:28]} 27. Rxd1 {[%clk 0:00:27]}  f6 {[%clk 0:00:28]} 28. Bd6+ {[%clk 0:00:28]}  Kf7 {[%clk 0:00:28]} 29. Rd3 {[%clk 0:00:28]}  e5 {[%clk 0:00:28]} 30. Ra3 {[%clk 0:00:28]}  Ra8 {[%clk 0:00:27]} 31. Kf2 {[%clk 0:00:23]}  Ke6 {[%clk 0:00:26]} 32. h4 {[%clk 0:00:23]}  Kd7 {[%clk 0:00:25]} 33. Rd3 {[%clk 0:00:21]}  Ke6 {[%clk 0:00:23]} 34. Bf8 {[%clk 0:00:20]}  Rxf8 {[%clk 0:00:13]} 35. Rd6+ {[%clk 0:00:19]}  Ke7 {[%clk 0:00:13]} 36. Rxc6 {[%clk 0:00:20]}  Rb8 {[%clk 0:00:12]} 37. Rc7+ {[%clk 0:00:20]}  Ke6 {[%clk 0:00:12]} 38. Rxa7 {[%clk 0:00:20]}  Rb2+ {[%clk 0:00:12]} 39. Kg3 {[%clk 0:00:20]}  Rc2 {[%clk 0:00:12]} 40. Rxg7 {[%clk 0:00:20]}  Rxc4 {[%clk 0:00:13]} 41. Rxh7 {[%clk 0:00:19]}  Rxc5 {[%clk 0:00:13]} 42. Ra7 {[%clk 0:00:19]}  Rc2 {[%clk 0:00:13]} 43. a4 {[%clk 0:00:17]}  f5 {[%clk 0:00:12]} 44. Ra6+ {[%clk 0:00:14]}  Kd5 {[%clk 0:00:10]} 45. h5 {[%clk 0:00:14]}  e4 {[%clk 0:00:10]} 46. fxe4+ {[%clk 0:00:13]}  fxe4 {[%clk 0:00:11]} 47. h6 {[%clk 0:00:13]}  e3 {[%clk 0:00:11]} 48. h7 {[%clk 0:00:13]}  Rc8 {[%clk 0:00:10]} 49. Rh6 {[%clk 0:00:12]} 1-0


[Site "https://www.chess.com"]

[Event "Titled Tuesday Blitz February 15 Early 2022"]
[White "Petesch, Gabriel"]
[Black "Mejia, Cherry Ann"]
[WhiteFideId "2032465"]
[BlackFideId "5206880"]
[WhiteElo "2374"]
[BlackElo "2007"]
[Result "1-0"]
[Round "05"]
[TimeControl "180+1"]
[Date "2022.02.15"]
[WhiteClock "0:00:08"]
[BlackClock "0:00:02"]

1. Nf3 {[%clk 0:03:00]}  d5 {[%clk 0:02:59]} 2. g3 {[%clk 0:03:01]}  Nf6 {[%clk 0:02:59]} 3. Bg2 {[%clk 0:03:02]}  b5 {[%clk 0:02:59]} 4. O-O {[%clk 0:03:03]}  c5 {[%clk 0:02:58]} 5. d3 {[%clk 0:03:01]}  e6 {[%clk 0:02:57]} 6. c4 {[%clk 0:03:00]}  a6 {[%clk 0:02:54]} 7. Nc3 {[%clk 0:02:54]}  b4 {[%clk 0:02:53]} 8. Na4 {[%clk 0:02:51]}  Be7 {[%clk 0:02:50]} 9. b3 {[%clk 0:02:45]}  O-O {[%clk 0:02:45]} 10. cxd5 {[%clk 0:02:45]}  exd5 {[%clk 0:02:36]} 11. Bb2 {[%clk 0:02:44]}  Be6 {[%clk 0:02:12]} 12. Rc1 {[%clk 0:02:41]}  Nfd7 {[%clk 0:02:04]} 13. Qd2 {[%clk 0:02:16]}  Nc6 {[%clk 0:01:43]} 14. e4 {[%clk 0:02:10]}  Rc8 {[%clk 0:01:27]} 15. Rfe1 {[%clk 0:01:59]}  Na5 {[%clk 0:00:59]} 16. exd5 {[%clk 0:01:54]}  Bxd5 {[%clk 0:00:59]} 17. Qf4 {[%clk 0:01:47]}  Nb7 {[%clk 0:00:45]} 18. Ne5 {[%clk 0:01:36]}  Bxg2 {[%clk 0:00:43]} 19. Kxg2 {[%clk 0:01:27]}  Nf6 {[%clk 0:00:38]} 20. Qf3 {[%clk 0:01:16]}  Qd5 {[%clk 0:00:28]} 21. Nb6 {[%clk 0:00:46]}  Qxf3+ {[%clk 0:00:28]} 22. Kxf3 {[%clk 0:00:41]}  Rc7 {[%clk 0:00:28]} 23. Rc2 {[%clk 0:00:32]}  Rd8 {[%clk 0:00:27]} 24. d4 {[%clk 0:00:28]}  Nd5 {[%clk 0:00:21]} 25. Nxd5 {[%clk 0:00:16]}  Rxd5 {[%clk 0:00:21]} 26. Nd3 {[%clk 0:00:14]}  h6 {[%clk 0:00:19]} 27. Nxb4 {[%clk 0:00:11]}  Rf5+ {[%clk 0:00:14]} 28. Kg2 {[%clk 0:00:11]}  Bf6 {[%clk 0:00:11]} 29. Nxa6 {[%clk 0:00:11]}  Rc6 {[%clk 0:00:08]} 30. Nxc5 {[%clk 0:00:10]}  Nxc5 {[%clk 0:00:08]} 31. dxc5 {[%clk 0:00:11]}  Bxb2 {[%clk 0:00:08]} 32. Rxb2 {[%clk 0:00:12]}  Rfxc5 {[%clk 0:00:06]} 33. Ree2 {[%clk 0:00:12]}  Rc1 {[%clk 0:00:04]} 34. b4 {[%clk 0:00:12]}  Rd6 {[%clk 0:00:05]} 35. b5 {[%clk 0:00:11]}  Rdd1 {[%clk 0:00:05]} 36. b6 {[%clk 0:00:11]}  g5 {[%clk 0:00:04]} 37. h3 {[%clk 0:00:11]}  f5 {[%clk 0:00:02]} 38. g4 {[%clk 0:00:08]} 1-0


[Site "https://www.chess.com"]

[Event "Titled Tuesday Blitz February 15 Early 2022"]
[White "Pichot, Alan"]
[Black "Chigaev, Maksim"]
[WhiteFideId "110973"]
[BlackFideId "4108116"]
[WhiteElo "2543"]
[BlackElo "2502"]
[Result "0-1"]
[Round "05"]
[TimeControl "180+1"]
[Date "2022.02.15"]
[WhiteClock "0:00:02"]
[BlackClock "0:00:05"]

1. e4 {[%clk 0:03:00]}  e5 {[%clk 0:03:00]} 2. Nf3 {[%clk 0:03:00]}  Nc6 {[%clk 0:03:01]} 3. Bb5 {[%clk 0:03:00]}  a6 {[%clk 0:03:01]} 4. Ba4 {[%clk 0:03:00]}  Nf6 {[%clk 0:03:02]} 5. O-O {[%clk 0:03:00]}  Be7 {[%clk 0:03:02]} 6. Re1 {[%clk 0:03:01]}  b5 {[%clk 0:03:02]} 7. Bb3 {[%clk 0:03:01]}  d6 {[%clk 0:03:03]} 8. c3 {[%clk 0:03:01]}  O-O {[%clk 0:03:03]} 9. h3 {[%clk 0:03:02]}  Na5 {[%clk 0:03:04]} 10. Bc2 {[%clk 0:03:02]}  c5 {[%clk 0:03:05]} 11. d4 {[%clk 0:03:02]}  Nd7 {[%clk 0:03:05]} 12. d5 {[%clk 0:02:57]}  Nb6 {[%clk 0:03:05]} 13. Nbd2 {[%clk 0:02:57]}  Bd7 {[%clk 0:03:06]} 14. Nf1 {[%clk 0:02:47]}  Nb7 {[%clk 0:03:05]} 15. Ng3 {[%clk 0:02:33]}  Qc7 {[%clk 0:03:04]} 16. Nf5 {[%clk 0:02:31]}  Bxf5 {[%clk 0:02:57]} 17. exf5 {[%clk 0:02:29]}  c4 {[%clk 0:02:58]} 18. Be3 {[%clk 0:02:05]}  Nc5 {[%clk 0:02:49]} 19. Bxc5 {[%clk 0:02:05]}  Qxc5 {[%clk 0:02:47]} 20. Be4 {[%clk 0:02:06]}  Nd7 {[%clk 0:02:43]} 21. g4 {[%clk 0:02:05]}  Qc7 {[%clk 0:02:35]} 22. Qe2 {[%clk 0:01:54]}  Qd8 {[%clk 0:02:33]} 23. Qe3 {[%clk 0:01:50]}  h6 {[%clk 0:02:28]} 24. Bc2 {[%clk 0:01:35]}  Bg5 {[%clk 0:02:20]} 25. Nxg5 {[%clk 0:01:25]}  Qxg5 {[%clk 0:02:14]} 26. Kg2 {[%clk 0:01:20]}  Rfe8 {[%clk 0:01:56]} 27. Rad1 {[%clk 0:01:12]}  Qxe3 {[%clk 0:01:43]} 28. Rxe3 {[%clk 0:01:13]}  Rab8 {[%clk 0:01:33]} 29. h4 {[%clk 0:01:12]}  f6 {[%clk 0:01:30]} 30. g5 {[%clk 0:01:03]}  hxg5 {[%clk 0:01:24]} 31. hxg5 {[%clk 0:01:04]}  fxg5 {[%clk 0:01:21]} 32. Rg3 {[%clk 0:01:04]}  Nf6 {[%clk 0:01:20]} 33. Rxg5 {[%clk 0:01:03]}  Kf7 {[%clk 0:01:20]} 34. Rg3 {[%clk 0:00:44]}  Rh8 {[%clk 0:01:19]} 35. b4 {[%clk 0:00:36]}  cxb3 {[%clk 0:00:56]} 36. axb3 {[%clk 0:00:34]}  Nh5 {[%clk 0:00:39]} 37. Rg4 {[%clk 0:00:24]}  Nf4+ {[%clk 0:00:38]} 38. Kf3 {[%clk 0:00:25]}  Rbc8 {[%clk 0:00:35]} 39. c4 {[%clk 0:00:12]}  bxc4 {[%clk 0:00:36]} 40. b4 {[%clk 0:00:12]}  Rb8 {[%clk 0:00:36]} 41. Ra1 {[%clk 0:00:12]}  Rb6 {[%clk 0:00:21]} 42. b5 {[%clk 0:00:11]}  Rxb5 {[%clk 0:00:16]} 43. Rxa6 {[%clk 0:00:11]}  Nxd5 {[%clk 0:00:13]} 44. Ra7+ {[%clk 0:00:06]}  Ne7 {[%clk 0:00:13]} 45. Ba4 {[%clk 0:00:02]}  Rc5 {[%clk 0:00:06]} 46. Bd7 {[%clk 0:00:03]}  Kf6 {[%clk 0:00:05]} 47. Be6 {[%clk 0:00:02]}  g5 {[%clk 0:00:05]} 48. fxg6 {[%clk 0:00:02]}  Kxe6 {[%clk 0:00:05]} 49. g7 {[%clk 0:00:02]}  Rg8 {[%clk 0:00:05]} 0-1


[Site "https://www.chess.com"]

[Event "Titled Tuesday Blitz February 15 Early 2022"]
[White "Pinheiro, Iung Alicio de O."]
[Black "Aaditya Dhingra"]
[WhiteFideId "2104350"]
[BlackFideId "25678191"]
[WhiteElo "2643"]
[BlackElo "1789"]
[Result "1-0"]
[Round "05"]
[TimeControl "180+1"]
[Date "2022.02.15"]
[WhiteClock "0:01:41"]
[BlackClock "0:00:03"]

1. e4 {[%clk 0:02:59]}  c5 {[%clk 0:02:59]} 2. Nf3 {[%clk 0:02:57]}  Nc6 {[%clk 0:02:59]} 3. c3 {[%clk 0:02:57]}  d5 {[%clk 0:02:57]} 4. exd5 {[%clk 0:02:56]}  Qxd5 {[%clk 0:02:58]} 5. d4 {[%clk 0:02:56]}  Bg4 {[%clk 0:02:49]} 6. Be2 {[%clk 0:02:55]}  Nf6 {[%clk 0:02:49]} 7. O-O {[%clk 0:02:50]}  e6 {[%clk 0:02:42]} 8. h3 {[%clk 0:02:43]}  Bh5 {[%clk 0:02:39]} 9. Be3 {[%clk 0:02:32]}  O-O-O {[%clk 0:01:54]} 10. dxc5 {[%clk 0:02:10]}  Qe4 {[%clk 0:01:22]} 11. Nbd2 {[%clk 0:02:05]}  Qg6 {[%clk 0:01:11]} 12. Nh4 {[%clk 0:01:50]}  Bxe2 {[%clk 0:00:34]} 13. Nxg6 {[%clk 0:01:48]}  Bxd1 {[%clk 0:00:22]} 14. Nxh8 {[%clk 0:01:48]}  Be2 {[%clk 0:00:17]} 15. Nxf7 {[%clk 0:01:43]}  Bxf1 {[%clk 0:00:06]} 16. Nxd8 {[%clk 0:01:42]}  Bxg2 {[%clk 0:00:03]} 17. Nxe6 {[%clk 0:01:41]} 1-0


[Site "https://www.chess.com"]